bitfinex/quotes_SOLUSD_20241121
["timestamp","ask_amount","ask_price","bid_price","bid_amount"]
[1732192102438,23.12871706,244.92,244.88,10.209]
[1732192102641,23.12871706,244.9,244.88,10.209]
[1732192102838,23.12871706,244.95,244.88,10.209]
[1732192103218,4.0812,245.03,244.88,10.209]
[1732192103548,10.2021,245.05,244.85,27.21281706]
[1732192103549,23.12871706,245.0,244.9,14.2914]
[1732192103716,23.12871706,245.0,244.91,23.12871706]
[1732192104525,0.5,245.06,244.92,14.2903]
[1732192104526,23.12871706,244.98,244.92,14.2903]
[1732192105017,23.12871706,244.98,244.84,12.7898]
[1732192105018,23.12871706,244.96,244.87,23.12871706]
[1732192105222,23.12871706,244.88,244.79,10.2128]
[1732192105418,23.12871706,244.88,244.64,0.5]
[1732192105419,23.12871706,244.82,244.71,23.12871706]
[1732192105622,23.12871706,244.82,244.73,23.12871706]
[1732192105924,23.12871706,244.88,244.77,23.12871706]
[1732192106134,23.12871706,244.86,244.75,23.12871706]
[1732192106318,23.12871706,244.86,244.77,23.12871706]
[1732192106743,23.12871706,244.86,244.77,27.21411706]
[1732192107041,23.12871706,244.86,244.77,37.42771706]
[1732192107439,4.0826,244.94,244.77,37.42771706]
[1732192107619,23.12871706,244.87,244.77,37.42771706]
[1732192108317,23.12871706,244.91,244.81,23.12871706]
[1732192108535,29.91014904,244.97,244.83,23.12871706]
[1732192108536,23.12871706,244.93,244.83,23.12871706]
[1732192108740,23.12871706,244.93,244.84,14.2949]
[1732192108950,23.12871706,244.87,244.8,4.0849]
[1732192109436,23.12871706,244.85,244.78,10.2129]
[1732192109739,23.12871706,244.85,244.78,14.2982]
[1732192110349,23.12871706,244.85,244.76,23.12871706]
[1732192110650,23.12871706,244.83,244.75,4.0857]
[1732192110834,23.12871706,244.83,244.72,10.2156]
[1732192110835,23.12871706,244.81,244.72,33.34431706]
[1732192111028,23.12871706,244.81,244.72,37.43061706]
[1732192111665,23.12871706,244.83,244.74,23.12871706]
[1732192112170,23.12871706,244.85,244.76,23.12871706]
[1732192112337,25.35868646,244.89,244.76,23.12871706]
[1732192112533,23.12871706,244.85,244.76,23.12871706]
[1732192112734,23.12871706,244.85,244.76,27.21421706]
[1732192112955,23.12871706,244.83,244.76,10.214]
[1732192113257,23.12871706,244.81,244.71,23.12871706]
[1732192113568,23.12871706,244.73,244.62,23.12871706]
[1732192113756,23.12871706,244.69,244.62,4.0878]
[1732192113928,23.12871706,244.69,244.62,10.2199]
[1732192114129,23.12871706,244.71,244.62,33.34861706]
[1732192114337,48.48740352,244.8,244.62,33.34861706]
[1732192114338,23.12871706,244.73,244.62,10.2199]
[1732192114535,25.35868646,244.79,244.68,23.12871706]
[1732192114742,2.81967351,244.78,244.7,23.12871706]
[1732192114936,2.81967351,244.78,244.71,23.12871706]
[1732192115140,2.81967351,244.78,244.73,23.12871706]
[1732192115343,23.12871706,244.83,244.69,14.3038]
[1732192115543,23.12871706,244.83,244.74,23.12871706]
[1732192115744,23.12871706,244.85,244.76,23.12871706]
[1732192115942,23.12871706,244.83,244.74,23.12871706]
[1732192116441,23.12871706,244.81,244.71,23.12871706]
[1732192116749,21.76986258,244.86,244.69,14.3038]
[1732192116750,23.12871706,244.77,244.69,14.3038]
[1732192117257,23.12871706,244.79,244.7,23.12871706]
[1732192117844,23.12871706,244.78,244.7,27.21521706]
[1732192118336,4.0841,244.85,244.7,37.43171706]
[1732192118337,23.12871706,244.8,244.7,37.43171706]
[1732192118537,23.12871706,244.78,244.7,37.43171706]
[1732192118760,23.12871706,244.78,244.7,14.303]
[1732192118936,23.12871706,244.76,244.7,14.303]
[1732192119359,23.12871706,244.78,244.7,14.303]
[1732192120158,23.12871706,244.76,244.7,10.2165]
[1732192120847,23.12871706,244.72,244.65,10.2185]
[1732192121058,23.12871706,244.69,244.65,10.2185]
[1732192121253,23.12871706,244.67,244.56,23.12871706]
[1732192121441,23.12871706,244.65,244.58,4.0885]
[1732192121648,23.12871706,244.67,244.58,27.21721706]
[1732192121848,0.5,244.77,244.57,10.222]
[1732192121849,23.12871706,244.65,244.57,10.222]
[1732192122149,23.12871706,244.71,244.63,23.12871706]
[1732192122355,23.12871706,244.76,244.67,23.12871706]
[1732192122662,4.0853,244.78,244.67,23.12871706]
[1732192122663,23.12871706,244.74,244.67,23.12871706]
[1732192122858,23.12871706,244.76,244.67,23.12871706]
[1732192123056,23.12871706,244.78,244.71,23.12871706]
[1732192123366,23.12871706,244.8,244.71,23.12871706]
[1732192123554,4.0847,244.82,244.69,23.12871706]
[1732192123755,23.12871706,244.78,244.69,23.12871706]
[1732192123961,23.12871706,244.78,244.7,4.0866]
[1732192125471,23.12871706,244.78,244.69,23.12871706]
[1732192126660,4.0841,244.85,244.69,23.12871706]
[1732192126861,2.81895896,244.84,244.71,23.12871706]
[1732192127048,23.12871706,244.8,244.71,23.12871706]
[1732192127472,23.12871706,244.81,244.73,23.12871706]
[1732192127767,23.12871706,244.81,244.71,23.12871706]
[1732192127968,23.12871706,244.77,244.69,37.43231706]
[1732192128351,23.12871706,244.79,244.71,23.12871706]
[1732192128579,27.21391706,244.79,244.71,23.12871706]
[1732192128767,4.55146258,244.87,244.71,23.12871706]
[1732192129069,23.12871706,244.81,244.72,14.302]
[1732192129245,23.12871706,244.79,244.72,10.2157]
[1732192129454,23.12871706,244.78,244.66,10.2179]
[1732192129649,23.12871706,244.8,244.72,23.12871706]
[1732192129859,23.12871706,244.82,244.72,23.12871706]
[1732192130146,23.12871706,244.82,244.74,23.12871706]
[1732192130379,23.12871706,244.82,244.72,23.12871706]
[1732192130580,27.21341706,244.82,244.72,27.21481706]
[1732192130956,8.63526258,244.87,244.78,23.12871706]
[1732192131265,23.12871706,244.85,244.76,23.12871706]
[1732192132070,23.12871706,244.83,244.74,23.12871706]
[1732192132272,23.12871706,244.85,244.76,23.12871706]
[1732192132497,23.12871706,244.87,244.78,23.12871706]
[1732192132771,23.12871706,244.85,244.76,23.12871706]
[1732192133471,23.12871706,244.85,244.77,4.0854]
[1732192133694,27.21291706,244.85,244.77,4.0854]
[1732192133861,27.21291706,244.85,244.76,23.12871706]
[1732192134173,27.21291706,244.85,244.76,27.21421706]
[1732192134553,4.0842,244.85,244.78,23.12871706]
[1732192134754,27.21291706,244.85,244.76,27.21421706]
[1732192134956,23.12871706,244.83,244.76,4.0855]
[1732192135677,1.0,244.95,244.76,4.0855]
[1732192135678,48.63615379,245.15,245.09,0.5]
[1732192135877,6.27736879,245.53,245.09,0.5]
[1732192135878,24.09504602,245.25,245.1,0.61165348]
[1732192136060,2.81697015,245.24,245.03,0.61155815]
[1732192136270,17.32595682,245.31,245.1,1.0]
[1732192136457,81.80756842,245.49,245.04,98.22278062]
[1732192136458,14.4598947,245.4,245.12,20.70819027]
[1732192136658,23.12871706,245.25,245.16,0.5]
[1732192136957,4.0776,245.24,245.17,133.20177989]
[1732192137176,23.12871706,245.23,245.18,18.598874]
[1732192137371,4.0776,245.24,245.21,36.98462386]
[1732192137574,23.12871706,245.28,245.22,13.59340808]
[1732192137776,3.99363204,245.27,245.23,2.71868161]
[1732192137955,23.12871706,245.28,245.27,24.66269424]
[1732192138155,46.25743412,245.28,245.2,20.89847227]
[1732192138469,46.25743412,245.28,245.14,165.00118596]
[1732192138470,23.12871706,245.21,245.16,6.15721897]
[1732192138774,23.12871706,245.18,245.16,6.15721897]
[1732192138978,23.12871706,245.18,245.15,6.15721897]
[1732192139279,23.12871706,245.16,245.14,115.68835415]
[1732192139772,23.776884,245.15,245.14,115.68835415]
[1732192141483,43.776884,245.15,245.14,113.68835415]
[1732192141959,43.776884,245.15,245.14,80.35505415]
[1732192142164,66.90560106,245.15,245.14,33.68845415]
[1732192142480,43.776884,245.15,245.14,33.68845415]
[1732192143181,23.776884,245.13,245.03,0.5]
[1732192143489,35.96011706,245.16,245.06,23.62871706]
[1732192143776,4.0791,245.15,245.06,23.62871706]
[1732192144087,27.20741706,245.18,245.11,0.5]
[1732192144260,27.20741706,245.18,245.08,23.62871706]
[1732192144460,23.12871706,245.14,245.04,0.5]
[1732192144762,23.12871706,245.14,245.05,23.62871706]
[1732192144961,27.20771706,245.16,245.07,23.62871706]
[1732192145164,23.12871706,245.14,245.05,24.12871706]
[1732192145469,23.776884,245.13,245.06,0.5]
[1732192145657,23.776884,245.13,245.05,23.12871706]
[1732192145857,23.776884,245.13,245.05,0.5]
[1732192146265,23.776884,245.13,245.04,23.62871706]
[1732192146266,23.12871706,245.14,245.06,23.12871706]
[1732192146464,23.776884,245.11,245.02,23.12871706]
[1732192146676,23.776884,245.11,245.02,23.62871706]
[1732192146880,27.20861706,245.1,245.0,23.62871706]
[1732192147061,23.776884,245.07,245.01,0.5]
[1732192147474,23.776884,245.07,244.99,0.5]
[1732192147673,12.46715538,245.17,245.09,0.5]
[1732192147984,16.54595538,245.17,245.09,23.12871706]
[1732192148182,39.67467244,245.17,245.07,23.62871706]
[1732192148685,39.67467244,245.17,245.09,23.12871706]
[1732192148864,39.67467244,245.17,245.07,23.12871706]
[1732192149474,12.46715538,245.17,245.09,23.12871706]
[1732192149682,12.46715538,245.17,245.09,24.12871706]
[1732192149886,12.46715538,245.17,245.11,0.5]
[1732192150176,35.59587244,245.17,245.11,0.5]
[1732192150383,35.59587244,245.17,245.09,0.5]
[1732192150561,23.12871706,245.13,245.06,0.5]
[1732192150763,23.776884,245.1,245.03,1.0]
[1732192150963,23.776884,245.12,245.04,24.12871706]
[1732192151170,27.856484,245.12,245.04,24.12871706]
[1732192151465,27.856484,245.12,245.04,0.5]
[1732192151466,23.12871706,245.11,245.04,0.5]
[1732192151681,46.90560106,245.12,245.03,23.62871706]
[1732192151982,23.776884,245.03,244.99,0.5]
[1732192152601,23.12871706,245.02,244.95,0.5]
[1732192152769,20.0,245.11,244.96,0.5]
[1732192153090,23.776884,245.04,244.97,0.5]
[1732192153268,23.776884,245.04,244.98,0.5]
[1732192153469,23.776884,245.04,244.99,0.5]
[1732192153878,27.20951706,245.05,244.98,0.5]
[1732192153879,23.776884,245.02,244.98,0.5]
[1732192154077,23.776884,245.02,244.95,0.5]
[1732192154278,23.12871706,245.03,244.95,0.5]
[1732192154465,23.12871706,245.03,244.98,0.5]
[1732192154794,4.0789,245.16,245.06,1.0]
[1732192155001,27.20761706,245.16,245.08,23.12871706]
[1732192155388,4.0786,245.18,245.11,0.5]
[1732192155699,39.67477244,245.17,245.11,0.5]
[1732192156103,39.67477244,245.17,245.09,1.0]
[1732192156295,39.67477244,245.17,245.12,0.5]
[1732192156603,23.12871706,245.13,245.11,0.5]
[1732192156899,23.12871706,245.13,245.06,0.5]
[1732192157108,27.20781706,245.16,245.12,0.5]
[1732192157401,12.46715538,245.17,245.16,0.5]
[1732192157901,12.46715538,245.17,245.15,0.5]
[1732192158279,12.46715538,245.17,245.16,0.5]
[1732192159881,12.46715538,245.17,245.16,4.5789]
[1732192160086,23.12871706,245.27,245.21,0.5]
[1732192160282,23.12871706,245.25,245.21,0.5]
[1732192160690,23.12871706,245.25,245.19,0.5]
[1732192161013,23.12871706,245.25,245.18,0.5]
[1732192161181,23.12871706,245.23,245.2,0.5]
[1732192161387,23.776884,245.22,245.15,23.62871706]
[1732192161608,23.776884,245.24,245.21,0.5]
[1732192161908,12.46715538,245.25,245.24,0.5]
[1732192163300,12.46715538,245.25,245.24,1.0]
[1732192163493,12.46715538,245.25,245.2,10.1956]
[1732192163494,12.46715538,245.25,245.22,0.5]
[1732192164114,23.12871706,245.23,245.22,0.5]
[1732192164302,16.54465538,245.25,245.18,0.5]
[1732192164613,23.776884,245.23,245.2,1.0]
[1732192164803,12.46715538,245.25,245.22,1.0]
[1732192165190,12.46715538,245.25,245.24,0.5]
[1732192165398,12.46715538,245.25,245.24,1.0]
[1732192166304,5.29478915,245.36,245.31,0.5]
[1732192166510,4.0754,245.37,245.33,0.5]
[1732192166716,4.0754,245.37,245.31,0.5]
[1732192167396,23.12871706,245.36,245.31,0.5]
[1732192167599,23.12871706,245.36,245.28,1.0]
[1732192167894,23.12871706,245.34,245.28,0.5]
[1732192168091,23.12871706,245.32,245.26,0.5]
[1732192168315,23.776884,245.31,245.27,0.5]
[1732192168529,23.776884,245.31,245.26,0.5]
[1732192168831,23.776884,245.29,245.22,0.5]
[1732192169118,23.776884,245.27,245.22,0.5]
[1732192169322,13.2478,245.36,245.17,0.5]
[1732192169323,23.12871706,245.24,245.17,0.5]
[1732192169618,4.0773,245.26,245.14,23.12871706]
[1732192169619,23.12871706,245.22,245.15,0.5]
[1732192169816,23.12871706,245.18,245.14,0.5]
[1732192170120,4.0773,245.26,245.14,0.5]
[1732192170121,23.776884,245.2,245.14,0.5]
[1732192170288,23.776884,245.18,245.12,0.5]
[1732192170600,23.776884,245.18,245.13,0.5]
[1732192170804,23.12871706,245.17,245.09,0.5]
[1732192171004,23.12871706,245.15,245.09,0.5]
[1732192171193,23.776884,245.18,245.09,0.5]
[1732192171194,23.12871706,245.13,245.09,0.5]
[1732192171398,4.0796,245.12,245.09,0.5]
[1732192171814,23.776884,245.1,245.03,24.12871706]
[1732192171997,23.776884,245.1,245.05,0.5]
[1732192172193,23.12871706,245.11,245.03,24.12871706]
[1732192172500,23.12871706,245.09,245.05,0.5]
[1732192172699,23.12871706,245.09,245.01,1.0]
[1732192172908,23.12871706,245.07,244.99,1.0]
[1732192173219,23.776884,245.06,245.0,0.5]
[1732192173395,23.12871706,245.07,245.02,0.5]
[1732192173396,4.0807,245.05,245.02,0.5]
[1732192173719,4.0807,245.05,245.01,0.5]
[1732192173720,23.776884,245.1,245.04,0.5]
[1732192173926,23.776884,245.08,245.03,0.5]
[1732192174101,23.776884,245.08,245.02,1.0]
[1732192174717,23.12871706,245.07,245.02,1.0]
[1732192175019,23.12871706,245.09,245.08,0.5]
[1732192175394,23.12871706,245.09,245.06,1.0]
[1732192175395,27.20881706,245.09,245.06,1.0]
[1732192175900,23.12871706,245.11,245.09,0.5]
[1732192176111,23.12871706,245.11,245.1,0.5]
[1732192176304,23.12871706,245.13,245.1,0.5]
[1732192176732,23.12871706,245.13,245.09,0.5]
[1732192177198,4.0793,245.14,245.07,0.5]
[1732192177199,23.12871706,245.11,245.07,0.5]
[1732192177393,23.12871706,245.11,245.06,0.5]
[1732192177600,23.12871706,245.11,245.07,0.5]
[1732192177804,23.12871706,245.11,245.01,27.21011706]
[1732192177805,23.12871706,245.13,245.11,0.5]
[1732192178009,23.12871706,245.13,245.09,1.0]
[1732192178217,23.12871706,245.11,245.09,0.5]
[1732192178409,23.12871706,245.11,245.07,0.5]
[1732192178613,23.12871706,245.11,245.05,0.5]
[1732192178816,23.12871706,245.09,245.05,0.5]
[1732192179314,23.12871706,245.07,245.03,0.5]
[1732192179519,4.0803,245.08,245.03,1.0]
[1732192179913,4.0803,245.08,245.05,1.0]
[1732192180112,4.08,245.1,245.05,1.0]
[1732192180620,46.90560106,245.09,245.03,1.0]
[1732192180999,46.90560106,245.09,245.01,23.12871706]
[1732192181000,23.12871706,245.09,245.05,1.0]
[1732192181436,27.20861706,245.11,245.07,0.5]
[1732192181604,27.20861706,245.11,245.07,1.0]
[1732192181800,23.12871706,245.13,245.09,1.0]
[1732192182117,23.12871706,245.15,245.09,0.5]
[1732192182312,23.12871706,245.15,245.1,0.5]
[1732192182527,23.12871706,245.13,245.08,0.5]
[1732192182698,4.0789,245.16,245.05,23.12871706]
[1732192182699,23.12871706,245.11,245.05,0.5]
[1732192182908,23.12871706,245.09,245.05,0.5]
[1732192183302,23.12871706,245.09,245.03,0.5]
[1732192183517,23.12871706,245.07,245.04,0.5]
[1732192184097,23.776884,245.13,245.06,1.0]
[1732192184297,23.12871706,245.12,245.08,0.5]
[1732192184518,23.776884,245.13,245.08,0.5]
[1732192184519,23.776884,245.13,245.11,0.5]
[1732192184721,23.12871706,245.12,245.11,0.5]
[1732192184930,23.12871706,245.12,245.06,0.5]
[1732192185134,23.12871706,245.1,245.05,0.5]
[1732192185431,23.12871706,245.08,245.04,0.5]
[1732192185823,23.12871706,245.08,245.03,0.5]
[1732192186011,10.1982,245.14,245.03,0.5]
[1732192186012,23.776884,245.13,245.04,0.5]
[1732192186218,23.12871706,245.1,245.04,0.5]
[1732192186441,23.776884,245.13,245.06,1.0]
[1732192186618,23.12871706,245.1,245.06,0.5]
[1732192186813,23.12871706,245.1,245.06,1.0]
[1732192187012,23.12871706,245.1,245.06,0.5]
[1732192187237,23.12871706,245.1,245.06,1.0]
[1732192187418,23.12871706,245.1,245.07,0.5]
[1732192187619,27.20871706,245.1,245.07,0.5]
[1732192187817,27.20871706,245.1,245.09,0.5]
[1732192188428,4.08,245.1,245.09,0.5]
[1732192188827,50.98560106,245.1,245.07,0.5]
[1732192189215,4.0791,245.15,245.09,0.5]
[1732192189423,23.776884,245.12,245.09,0.5]
[1732192189632,4.0798,245.11,245.09,0.5]
[1732192189834,27.20851706,245.11,245.06,1.0]
[1732192190037,23.776884,245.08,245.04,0.5]
[1732192190240,23.776884,245.08,245.02,0.5]
[1732192190241,23.776884,245.08,245.06,0.5]
[1732192190538,23.776884,245.08,245.02,0.5]
[1732192190539,23.776884,245.08,245.04,0.5]
[1732192190719,23.776884,245.08,245.06,0.5]
[1732192190920,14.2793,245.11,245.06,0.5]
[1732192190921,23.12871706,245.07,245.06,0.5]
[1732192191121,46.90560106,245.07,245.06,0.5]
[1732192191533,50.98600106,245.07,245.06,0.5]
[1732192192444,50.98600106,245.07,245.04,0.5]
[1732192193639,23.12871706,245.09,245.06,0.5]
[1732192193840,46.90560106,245.09,245.08,0.5]
[1732192194216,46.90560106,245.09,244.97,10.205]
[1732192194217,23.12871706,245.15,245.12,0.5]
[1732192194430,23.12871706,245.15,245.1,0.5]
[1732192194641,23.12871706,245.13,245.1,0.5]
[1732192194937,32.79790867,245.23,245.13,0.5]
[1732192195141,23.12871706,245.17,245.13,0.5]
[1732192195435,23.12871706,245.19,245.17,0.5]
[1732192195743,23.12871706,245.19,245.13,1.0]
[1732192195936,23.12871706,245.17,245.13,0.5]
[1732192196240,23.12871706,245.17,245.13,1.0]
[1732192196935,4.0789,245.16,245.11,1.0]
[1732192197132,46.90560106,245.15,245.11,1.0]
[1732192197336,23.776884,245.12,245.07,1.0]
[1732192197535,23.12871706,245.1,245.09,0.5]
[1732192197734,23.12871706,245.1,245.06,0.5]
[1732192198124,46.90560106,245.12,245.08,0.5]
[1732192198853,46.90560106,245.12,245.1,0.5]
[1732192199028,4.0798,245.11,245.1,0.5]
[1732192199341,27.20841706,245.12,245.1,0.5]
[1732192199553,4.0797,245.12,245.03,23.12871706]
[1732192200133,23.776884,245.11,245.03,23.12871706]
[1732192200357,23.12871706,245.07,244.99,23.12871706]
[1732192200533,23.776884,245.06,244.99,23.12871706]
[1732192201046,4.0806,245.06,244.99,23.12871706]
[1732192201250,23.776884,245.09,245.03,23.12871706]
[1732192201457,4.08,245.1,245.03,23.12871706]
[1732192201961,13.3241,245.14,245.05,23.12871706]
[1732192202259,23.12871706,245.15,245.07,23.12871706]
[1732192202457,23.12871706,245.13,245.03,23.12871706]
[1732192202642,23.12871706,245.13,244.99,14.2861]
[1732192202643,23.12871706,245.09,245.01,23.12871706]
[1732192202966,10.1978,245.15,245.01,23.12871706]
[1732192203251,23.776884,245.08,245.01,23.12871706]
[1732192203432,23.12871706,245.09,245.01,23.12871706]
[1732192203636,43.02686866,245.21,245.08,23.12871706]
[1732192203864,12.9433,245.22,244.95,1.0]
[1732192203865,27.20711706,245.19,245.1,23.12871706]
[1732192204153,12.56086313,245.27,245.16,23.12871706]
[1732192204154,23.12871706,245.25,245.16,23.12871706]
[1732192204538,4.0771,245.27,245.18,23.12871706]
[1732192204539,27.20581706,245.27,245.18,23.12871706]
[1732192204754,23.12871706,245.25,245.16,23.12871706]
[1732192204948,23.12871706,245.25,245.09,31.82081317]
[1732192204949,4.0779,245.22,245.14,23.12871706]
[1732192205459,4.0777,245.24,245.16,23.12871706]
[1732192205759,4.0777,245.24,245.14,23.12871706]
[1732192205760,23.12871706,245.23,245.14,23.12871706]
[1732192206056,23.12871706,245.21,245.13,14.2779]
[1732192206256,23.12871706,245.15,245.07,14.281]
[1732192206472,23.12871706,245.19,245.09,23.12871706]
[1732192206646,9.47884935,245.24,245.04,43.53291706]
[1732192206647,23.12871706,245.15,245.04,23.12871706]
[1732192206837,23.776884,245.12,245.05,0.93275424]
[1732192207037,23.12871706,245.13,245.05,0.93275424]
[1732192207344,27.20831706,245.13,245.05,0.93275424]
[1732192207548,23.776884,245.12,245.05,0.93275424]
[1732192207737,27.20781706,245.15,245.06,23.12871706]
[1732192207937,27.20781706,245.15,245.05,15.21535424]
[1732192207938,23.776884,245.13,245.05,0.93275424]
[1732192208456,23.776884,245.09,245.05,0.93275424]
[1732192208641,23.12871706,245.12,245.05,0.93275424]
[1732192208845,23.776884,245.11,245.05,0.93275424]
[1732192209038,4.0801,245.09,245.02,23.12871706]
[1732192209356,4.0799,245.11,245.04,23.12871706]
[1732192209659,23.12871706,245.1,245.02,23.12871706]
[1732192209840,4.0799,245.11,245.02,23.12871706]
[1732192210032,4.0799,245.11,245.04,23.12871706]
[1732192210359,23.12871706,245.16,245.06,23.12871706]
[1732192210563,23.776884,245.15,245.06,23.12871706]
[1732192210856,23.12871706,245.18,245.08,23.12871706]
[1732192211066,4.0788,245.17,245.08,23.12871706]
[1732192211234,23.12871706,245.18,245.08,23.12871706]
[1732192211434,23.12871706,245.18,245.1,23.12871706]
[1732192211435,27.20731706,245.18,245.1,23.12871706]
[1732192211741,27.20731706,245.18,245.08,23.12871706]
[1732192212460,23.12871706,245.18,245.1,23.12871706]
[1732192212653,45.91126313,245.29,245.14,23.12871706]
[1732192212654,23.12871706,245.22,245.14,23.12871706]
[1732192212962,4.0774,245.25,245.16,23.12871706]
[1732192213136,27.20611706,245.25,245.14,23.12871706]
[1732192213465,23.12871706,245.21,245.11,23.12871706]
[1732192213635,23.12871706,245.21,245.13,23.12871706]
[1732192214255,4.0774,245.25,245.13,23.12871706]
[1732192214256,23.12871706,245.23,245.13,23.12871706]
[1732192214430,27.20651706,245.23,245.14,4.0793]
[1732192214633,23.12871706,245.25,245.15,23.12871706]
[1732192215359,23.12871706,245.25,245.17,23.12871706]
[1732192215566,15.59074935,245.35,245.23,23.12871706]
[1732192215567,33.50389773,245.33,245.23,23.12871706]
[1732192215756,29.42769773,245.33,245.23,23.12871706]
[1732192215948,23.12871706,245.31,245.21,23.12871706]
[1732192216141,6.29898067,245.32,245.26,23.12871706]
[1732192216343,6.29898067,245.35,245.3,23.12871706]
[1732192216564,37.68894064,245.44,245.3,23.12871706]
[1732192216565,6.29898067,245.4,245.34,23.12871706]
[1732192216857,6.29898067,245.41,245.34,23.12871706]
[1732192217455,6.29898067,245.42,245.34,23.12871706]
[1732192217646,23.12871706,245.42,245.34,23.12871706]
[1732192217969,23.12871706,245.42,245.32,23.12871706]
[1732192218154,23.12871706,245.4,245.32,23.12871706]
[1732192218549,23.12871706,245.4,245.31,10.1911]
[1732192218750,23.12871706,245.4,245.32,23.12871706]
[1732192218940,4.074,245.46,245.32,23.12871706]
[1732192219254,23.12871706,245.4,245.32,23.12871706]
[1732192219459,23.12871706,245.38,245.31,14.2675]
[1732192219973,23.12871706,245.4,245.31,37.39621706]
[1732192220158,27.20361706,245.4,245.31,37.39621706]
[1732192220463,23.12871706,245.38,245.31,14.2675]
[1732192220668,23.12871706,245.38,245.31,10.1911]
[1732192220854,23.12871706,245.36,245.3,0.93180362]
[1732192221253,23.12871706,245.38,245.3,15.19990362]
[1732192221452,23.12871706,245.44,245.35,23.12871706]
[1732192222348,23.12871706,245.41,245.36,14.2647]
[1732192222547,23.12871706,245.39,245.32,4.0761]
[1732192222744,4.0739,245.47,245.31,0.93176563]
[1732192222745,23.12871706,245.37,245.31,0.93176563]
[1732192222947,23.12871706,245.39,245.31,15.19916563]
[1732192223147,23.12871706,245.43,245.34,23.12871706]
[1732192223355,23.12871706,245.45,245.36,23.12871706]
[1732192223772,4.0735,245.49,245.32,23.73988802]
[1732192223957,4.0735,245.49,245.31,15.19916563]
[1732192223958,23.12871706,245.39,245.31,15.19916563]
[1732192224360,23.12871706,245.37,245.31,15.19916563]
[1732192224555,23.12871706,245.37,245.31,11.12286563]
[1732192224743,23.12871706,245.37,245.31,15.19926563]
[1732192224944,23.12871706,245.39,245.31,15.19926563]
[1732192225760,47.850284,245.49,245.31,15.19926563]
[1732192225968,23.12871706,245.38,245.31,15.19926563]
[1732192227647,23.12871706,245.34,245.31,0.93176563]
[1732192227849,23.12871706,245.34,245.26,10.1932]
[1732192228077,10.1855,245.45,245.28,23.12871706]
[1732192228078,23.12871706,245.36,245.28,23.12871706]
[1732192228374,23.12871706,245.38,245.28,23.12871706]
[1732192228674,23.12871706,245.38,245.3,23.12871706]
[1732192228969,23.12871706,245.4,245.3,23.12871706]
[1732192229375,23.12871706,245.38,245.28,23.12871706]
[1732192229565,23.12871706,245.38,245.3,23.12871706]
[1732192230388,23.12871706,245.4,245.3,23.12871706]
[1732192230783,48.96493594,245.49,245.32,23.12871706]
[1732192230784,23.12871706,245.42,245.32,23.12871706]
[1732192230960,23.12871706,245.44,245.34,23.12871706]
[1732192231164,23.12871706,245.44,245.36,23.12871706]
[1732192231364,23.12871706,245.44,245.35,0.93161372]
[1732192231587,23.12871706,245.44,245.36,14.2647]
[1732192232471,23.12871706,245.44,245.36,37.39341706]
[1732192232678,23.12871706,245.46,245.36,14.2647]
[1732192233083,4.0735,245.49,245.36,14.2647]
[1732192233084,23.12871706,245.49,245.39,23.12871706]
[1732192233271,23.12871706,245.49,245.41,23.12871706]
[1732192233693,23.12871706,245.49,245.42,14.2612]
[1732192234288,23.12871706,245.47,245.42,14.2612]
[1732192234496,23.12871706,245.49,245.42,14.2612]
[1732192234678,23.12871706,245.47,245.42,10.1866]
[1732192234990,23.12871706,245.43,245.37,10.1885]
[1732192235172,23.12871706,245.43,245.37,14.2639]
[1732192235373,23.12871706,245.45,245.37,14.2639]
[1732192236179,23.12871706,245.42,245.35,5.00731372]
[1732192236394,23.12871706,245.4,245.35,0.93161372]
[1732192236888,4.0731,245.51,245.35,15.19681372]
[1732192237082,14.33863857,245.44,245.35,29.53545229]
[1732192237991,20.0,245.6,245.35,15.19681372]
[1732192238193,20.0,245.6,245.4,14.33863857]
[1732192238394,14.33863857,245.51,245.4,14.33863857]
[1732192238693,14.33863857,245.51,245.42,14.33863857]
[1732192239585,14.33863857,245.49,245.4,15.27006248]
[1732192239891,4.0728,245.53,245.43,14.2606]
[1732192240104,14.33863857,245.5,245.43,14.2606]
[1732192240477,14.33863857,245.48,245.43,14.2606]